fUST/lending_fUST_20250314
["ID","MTS","AMOUNT","RATE_DAILY","PERIOD"]
[356139998,1741950555092,-822.74,9.116e-05,2]
[356139999,1741950555113,-500.0,9.116e-05,2]
[356140000,1741950555135,-3279.43,9.116e-05,2]
[356140001,1741950555156,-500.0,9.116e-05,2]
[356140002,1741950555178,-923.88,9.116e-05,2]
[356140003,1741950555199,-2385.47,9.116e-05,2]
[356140004,1741950555221,-718.15,9.116e-05,2]
[356140005,1741950555242,-927.31,9.116e-05,2]
[356140006,1741950555263,-557.1,9.116e-05,2]
[356140007,1741950555285,-856.56,9.116e-05,2]
[356140008,1741950555309,-536.09679028,9.116e-05,2]
[356140009,1741950555334,-2324.79,9.116e-05,2]
[356140010,1741950555359,-1112.72,9.116e-05,2]
[356140011,1741950555380,-500.0,9.116e-05,2]
[356140012,1741950555403,-1194.35,9.116e-05,2]
[356140013,1741950555424,-500.0,9.116e-05,2]
[356140014,1741950555445,-500.0,9.116e-05,2]
[356140015,1741950555466,-3424.26,9.116e-05,2]
[356140016,1741950555489,-500.0,9.116e-05,2]
[356140017,1741950555511,-762.95,9.116e-05,2]
[356140018,1741950555534,-4006.65,9.116e-05,2]
[356140019,1741950555556,-500.0,9.116e-05,2]
[356140020,1741950555578,-500.0,9.116e-05,2]
[356140021,1741950555600,-4212.59,9.116e-05,2]
[356140022,1741950555623,-500.0,9.116e-05,2]
[356140023,1741950555644,-500.0,9.116e-05,2]
[356140024,1741950555666,-500.0,9.116e-05,2]
[356140025,1741950555688,-500.0,9.116e-05,2]
[356140026,1741950555712,-6792.99,9.116e-05,2]
[356140027,1741950555734,-900.49,9.116e-05,2]
[356140028,1741950555755,-500.0,9.116e-05,2]
[356140029,1741950555778,-1655.97,9.116e-05,2]
[356140030,1741950555800,-4102.92,9.116e-05,2]
[356140031,1741950555824,-500.0,9.116e-05,2]
[356140032,1741950555845,-500.0,9.116e-05,2]
[356140033,1741950555868,-1760.99,9.116e-05,2]
[356140034,1741950555889,-761.94,9.116e-05,2]
[356140035,1741950555910,-500.0,9.116e-05,2]
[356140036,1741950555932,-762.48,9.116e-05,2]
[356140037,1741950555952,-25745.24734139,9.116e-05,2]
[356140038,1741950555982,-23277.3417002,9.116e-05,2]
[356140039,1741950566087,-1099.09,8.84e-05,2]
[356140040,1741950566109,-1118.79,8.841e-05,2]
[356140041,1741950566129,-500.0,8.842e-05,2]
[356140042,1741950566150,-1984.08615284,8.842e-05,2]
[356140043,1741950571120,-6373.64384716,8.842e-05,2]
[356140044,1741950571144,-500.0,8.842e-05,2]
[356140045,1741950571167,-704.03,8.842e-05,2]
[356140046,1741950571189,-510.77749079,8.842e-05,2]
[356140047,1741950571212,-500.0,8.842e-05,2]
[356140048,1741950571235,-1099.09,9.114e-05,2]
[356140049,1741950571256,-1118.79,9.115e-05,2]
[356140050,1741950571277,-201160.14095841,9.116e-05,2]
[356140051,1741950571298,-918.49,9.116e-05,2]
[356140052,1741950571323,-500.0,9.116e-05,2]
[356140053,1741950571348,-577.91,9.116e-05,2]
[356140054,1741950571371,-500.0,9.116e-05,2]
[356140055,1741950571392,-1072.32,9.116e-05,2]
[356140056,1741950571418,-655.84,9.116e-05,2]
[356140057,1741950571440,-2347.12,9.116e-05,2]
[356140058,1741950571463,-1200.99,9.116e-05,2]
[356140059,1741950571484,-643.56,9.116e-05,2]
[356140060,1741950571508,-500.0,9.116e-05,2]
[356140061,1741950571530,-1018.11,9.116e-05,2]
[356140062,1741950571552,-500.0,9.116e-05,2]
[356140063,1741950571576,-5396.80663734,9.116e-05,2]
[356140064,1741950610536,600.0,0.000115,3]
[356140065,1741950617919,1000.0,0.000115,3]
[356140074,1741950632872,-500.0,8.84e-05,2]
[356140075,1741950632882,-300.0,8.84e-05,2]
[356140076,1741950632892,-3889.53,8.841e-05,2]
[356140077,1741950632902,-3006.14,8.841e-05,2]
[356140078,1741950632912,-2186.68,8.841e-05,2]
[356140079,1741950632922,-500.0,8.841e-05,2]
[356140080,1741950632932,-785.18,8.841e-05,2]
[356140081,1741950632942,-1020.0,8.841e-05,2]
[356140082,1741950632952,-500.0,8.842e-05,2]
[356140083,1741950632962,-19702.49,8.842e-05,2]
[356140084,1741950632972,-500.0,8.842e-05,2]
[356140085,1741950632982,-500.0,8.842e-05,2]
[356140086,1741950632992,-960.55,8.842e-05,2]
[356140087,1741950633002,-878.6,8.842e-05,2]
[356140088,1741950633013,-4967.49,8.842e-05,2]
[356140089,1741950633023,-500.0,8.842e-05,2]
[356140090,1741950633034,-500.0,8.842e-05,2]
[356140091,1741950633044,-500.0,8.842e-05,2]
[356140092,1741950633055,-500.0,8.842e-05,2]
[356140093,1741950633069,-506.83,8.842e-05,2]
[356140094,1741950633080,-733.68,8.842e-05,2]
[356140095,1741950633091,-500.0,8.842e-05,2]
[356140096,1741950633102,-500.0,8.842e-05,2]
[356140097,1741950633113,-500.0,9.114e-05,2]
[356140099,1741950633124,-3889.53,9.115e-05,2]
[356140101,1741950633134,-3006.14,9.115e-05,2]
[356140103,1741950633146,-2186.68,9.115e-05,2]
[356140105,1741950633156,-500.0,9.115e-05,2]
[356140107,1741950633167,-785.18,9.115e-05,2]
[356140109,1741950633178,-1020.0,9.115e-05,2]
[356140111,1741950633189,-2960.92336266,9.116e-05,2]
[356140113,1741950633199,-500.0,9.116e-05,2]
[356140114,1741950633209,-704.03,9.116e-05,2]
[356140115,1741950633219,-500.0,9.116e-05,2]
[356140117,1741950633230,-514.7758137,9.116e-05,2]
[356140119,1741950633246,-19702.49,9.116e-05,2]
[356140120,1741950633256,-500.0,9.116e-05,2]
[356140122,1741950633266,-500.0,9.116e-05,2]
[356140125,1741950633277,-960.55,9.116e-05,2]
[356140126,1741950633287,-878.6,9.116e-05,2]
[356140129,1741950633298,-4967.49,9.116e-05,2]
[356140131,1741950633308,-500.0,9.116e-05,2]
[356140133,1741950633318,-500.0,9.116e-05,2]
[356140135,1741950633328,-500.0,9.116e-05,2]
[356140137,1741950633339,-500.0,9.116e-05,2]
[356140138,1741950633352,-506.83,9.116e-05,2]
[356140141,1741950633363,-733.68,9.116e-05,2]
[356140143,1741950633377,-500.0,9.116e-05,2]
[356140145,1741950633387,-500.0,9.116e-05,2]
[356140147,1741950633397,-169.57936197,9.236e-05,2]
[356140149,1741950633407,-169.57936197,9.357e-05,2]
[356140150,1741950633417,-186.9553738,9.36e-05,2]
[356140151,1741950633428,-186.9553738,9.36e-05,2]
[356140152,1741950633439,-6142.58,9.388e-05,2]
[356140153,1741950633449,-1099.09,9.388e-05,2]
[356140154,1741950633459,-292.69786834,9.388e-05,2]
[356140155,1741950633470,-500.0,9.389e-05,2]
[356140156,1741950633480,-5552.67,9.389e-05,2]
[356140157,1741950633491,-1437.18,9.389e-05,2]
[356140158,1741950633501,-1263.67,9.389e-05,2]
[356140159,1741950633512,-500.0,9.389e-05,2]
[356140160,1741950633522,-1348.26,9.389e-05,2]
[356140161,1741950633532,-1118.79,9.389e-05,2]
[356140162,1741950633542,-3889.53,9.389e-05,2]
[356140163,1741950633551,-3006.14,9.389e-05,2]
[356140164,1741950633562,-2186.68,9.389e-05,2]
[356140165,1741950633573,-500.0,9.389e-05,2]
[356140166,1741950633583,-785.18,9.389e-05,2]
[356140167,1741950633594,-1020.0,9.389e-05,2]
[356140168,1741950633604,-500.0,9.39e-05,2]
[356140169,1741950633616,-500.0,9.39e-05,2]
[356140170,1741950633626,-599.07,9.39e-05,2]
[356140171,1741950633637,-500.0,9.39e-05,2]
[356140172,1741950633647,-500.0,9.39e-05,2]
[356140173,1741950633657,-500.0,9.39e-05,2]
[356140174,1741950633667,-500.0,9.39e-05,2]
[356140175,1741950633677,-500.0,9.39e-05,2]
[356140176,1741950633687,-500.0,9.39e-05,2]
[356140177,1741950633697,-500.0,9.39e-05,2]
[356140178,1741950633710,-500.0,9.39e-05,2]
[356140179,1741950633722,-635.82,9.39e-05,2]
[356140180,1741950633733,-500.0,9.39e-05,2]
[356140181,1741950633744,-500.0,9.39e-05,2]
[356140182,1741950633755,-500.0,9.39e-05,2]
[356140183,1741950633766,-500.0,9.39e-05,2]
[356140184,1741950633776,-500.0,9.39e-05,2]
[356140185,1741950633786,-642.88,9.39e-05,2]
[356140186,1741950633796,-822.74,9.39e-05,2]
[356140187,1741950633806,-190.1352851,9.39e-05,2]
[356140188,1741950633816,-559.4225717,9.39e-05,2]
[356140189,1741950633825,-500.0,9.39e-05,2]
[356140190,1741950633835,-500.0,9.39e-05,2]
[356140191,1741950633846,-923.88,9.39e-05,2]
[356140192,1741950633857,-718.15,9.39e-05,2]
[356140193,1741950633867,-927.31,9.39e-05,2]
[356140194,1741950633877,-557.1,9.39e-05,2]
[356140195,1741950633892,-2324.79,9.39e-05,2]
[356140196,1741950633903,-500.0,9.39e-05,2]
[356140197,1741950633913,-1194.35,9.39e-05,2]
[356140198,1741950633922,-500.0,9.39e-05,2]
[356140199,1741950633931,-3424.26,9.39e-05,2]
[356140200,1741950633941,-500.0,9.39e-05,2]
[356140201,1741950633952,-500.0,9.39e-05,2]
[356140202,1741950633962,-762.95,9.39e-05,2]
[356140203,1741950633972,-4006.65,9.39e-05,2]
[356140204,1741950633982,-500.0,9.39e-05,2]
[356140205,1741950633992,-4212.59,9.39e-05,2]
[356140206,1741950634001,-500.0,9.39e-05,2]
[356140207,1741950634011,-500.0,9.39e-05,2]
[356140208,1741950634021,-500.0,9.39e-05,2]
[356140209,1741950634030,-211.28825854,9.39e-05,2]
[356140210,1741950634048,-6792.99,9.39e-05,2]
[356140211,1741950634061,-900.49,9.39e-05,2]
[356140212,1741950634076,-500.0,9.39e-05,2]
[356140213,1741950634090,-1655.97,9.39e-05,2]
[356140214,1741950634104,-4102.92,9.39e-05,2]
[356140215,1741950634117,-500.0,9.39e-05,2]
[356140216,1741950634129,-500.0,9.39e-05,2]
[356140217,1741950634140,-1760.99,9.39e-05,2]
[356140218,1741950634150,-761.94,9.39e-05,2]
[356140219,1741950634164,-500.0,9.39e-05,2]
[356140220,1741950634176,-762.48,9.39e-05,2]
[356140221,1741950634188,-41029.46182901,9.39e-05,2]
[356140252,1741950638841,-524.18,8.84e-05,2]
[356140253,1741950638852,-500.0,8.84e-05,2]
[356140254,1741950638863,-134.70657255,8.841e-05,2]
[356140266,1741950640928,-910.35342745,8.841e-05,2]
[356140267,1741950640938,-500.0,8.841e-05,2]
[356140268,1741950640947,-536.51,8.842e-05,2]
[356140269,1741950640957,-719.9,8.842e-05,2]
[356140270,1741950640966,-524.18,9.114e-05,2]
[356140271,1741950640976,-500.0,9.114e-05,2]
[356140272,1741950640985,-297.75435022,9.115e-05,2]
[356140326,1741950646757,-747.25,8.842e-05,2]
[356140328,1741950646767,-500.0,8.842e-05,2]
[356140330,1741950646776,-747.30564978,9.115e-05,2]
[356140331,1741950646785,-500.0,9.115e-05,2]
[356140332,1741950646794,-536.51,9.116e-05,2]
[356140334,1741950646804,-719.9,9.116e-05,2]
[356140336,1741950646813,-747.25,9.116e-05,2]
[356140337,1741950646822,-500.0,9.116e-05,2]
[356140339,1741950646831,-524.18,9.388e-05,2]
[356140341,1741950646840,-500.0,9.388e-05,2]
[356140343,1741950646850,-1045.06,9.389e-05,2]
[356140345,1741950646859,-500.0,9.389e-05,2]
[356140347,1741950646868,-793.99914875,9.39e-05,2]
[356140361,1741950651635,1000.0,0.000114,3]
[356140363,1741950703296,1000.0,0.000115,3]
[356140365,1741950782942,16827.1400642,7.978e-05,2]
[356140366,1741950782980,8072.8599358,7.978e-05,2]
[356140368,1741950794194,1216.6777825,0.000115,3]
[356140373,1741950907510,600.0,0.000115,3]
[356140378,1741950977508,-150.0,8.219e-05,2]
[356140379,1741950979627,206.56509627,0.000115,3]
[356140382,1741951126068,-206.59990355,8.137e-05,2]
[356140383,1741951212609,600.0,0.000115,3]
[356140387,1741951312662,-285.21772863,8.056e-05,2]
[356140393,1741951495357,1980.63,7.071e-05,2]
[356140394,1741951502167,1627.22279857,7.975e-05,2]
[356140397,1741951511330,600.0,0.000115,3]
[356140398,1741951530147,-495.2157215,8.219e-05,2]
[356140399,1741951530171,-300.0,8.837e-05,2]
[356140400,1741951530195,-300.0,8.838e-05,2]
[356140401,1741951530219,-206.59990355,8.838e-05,2]
[356140402,1741951530241,-2081.71961585,8.838e-05,2]
[356140407,1741951625097,-300.0,8.837e-05,2]
[356140408,1741951625119,-2338.50858315,8.838e-05,2]
[356140409,1741951628307,-954.521801,8.838e-05,2]
[356140410,1741951628329,-961.7,8.838e-05,2]
[356140411,1741951628352,-500.0,8.838e-05,2]
[356140412,1741951628373,-500.0,8.838e-05,2]
[356140413,1741951628394,-500.0,8.839e-05,2]
[356140414,1741951628414,-109.72709779,8.839e-05,2]
[356140415,1741951632126,-384.78870974,8.839e-05,2]
[356140421,1741951697199,1816.8204187,7.939e-05,2]
[356140423,1741951753115,-300.0,8.837e-05,2]
[356140424,1741951753138,-4956.75,8.838e-05,2]
[356140425,1741951753158,-511.1047584,8.838e-05,2]
[356140426,1741951753180,-4478.95,8.838e-05,2]
[356140427,1741951753201,-1257.53,8.838e-05,2]
[356140428,1741951753223,-921.63,8.838e-05,2]
[356140429,1741951753244,-1105.72,8.838e-05,2]
[356140430,1741951753264,-500.0,8.838e-05,2]
[356140431,1741951753284,-1179.73,8.838e-05,2]
[356140432,1741951753304,-5.48419247,8.839e-05,2]
[356140433,1741951753324,-500.0,8.839e-05,2]
[356140434,1741951753343,-576.12843149,8.839e-05,2]
[356140435,1741951753363,-500.0,8.839e-05,2]
[356140436,1741951753382,-500.0,8.839e-05,2]
[356140437,1741951753402,-500.0,8.839e-05,2]
[356140438,1741951753422,-500.0,8.839e-05,2]
[356140439,1741951753441,-588.4,8.839e-05,2]
[356140440,1741951753461,-3676.49,8.839e-05,2]
[356140441,1741951753482,-500.0,8.839e-05,2]
[356140442,1741951753502,-500.0,8.839e-05,2]
[356140443,1741951753522,-3889.28,8.839e-05,2]
[356140444,1741951753542,-500.0,8.839e-05,2]
[356140445,1741951753563,-515.05479477,8.839e-05,2]
[356140446,1741951753583,-515.76295566,8.839e-05,2]
[356140447,1741951753603,-1517.61,8.839e-05,2]
[356140448,1741951753623,-667.93,8.839e-05,2]
[356140449,1741951753643,-921.02,8.839e-05,2]
[356140450,1741951753664,-500.0,8.839e-05,2]
[356140451,1741951753688,-500.0,8.839e-05,2]
[356140452,1741951753708,-500.0,8.839e-05,2]
[356140453,1741951753731,-1246.77,8.839e-05,2]
[356140454,1741951753751,-500.0,8.839e-05,2]
[356140455,1741951753774,-718.31,8.839e-05,2]
[356140456,1741951753794,-500.0,8.839e-05,2]
[356140457,1741951753815,-500.0,8.839e-05,2]
[356140458,1741951753836,-880.5,8.839e-05,2]
[356140459,1741951753857,-500.0,8.839e-05,2]
[356140460,1741951753879,-500.0,8.839e-05,2]
[356140461,1741951753899,-500.0,8.839e-05,2]
[356140462,1741951753918,-500.0,8.839e-05,2]
[356140463,1741951753939,-500.0,8.839e-05,2]
[356140464,1741951753961,-978.94,8.839e-05,2]
[356140465,1741951753982,-500.0,8.839e-05,2]
[356140466,1741951754003,-2922.25,8.839e-05,2]
[356140467,1741951754023,-500.0,8.839e-05,2]
[356140468,1741951754043,-814.15,8.839e-05,2]
[356140469,1741951754064,-500.0,8.839e-05,2]
[356140470,1741951754085,-3403.34,8.839e-05,2]
[356140471,1741951754106,-894.93,8.839e-05,2]
[356140472,1741951754127,-1913.34,8.839e-05,2]
[356140473,1741951754148,-619.7,8.839e-05,2]
[356140474,1741951754168,-1086.31,8.839e-05,2]
[356140475,1741951754189,-2148.86,8.839e-05,2]
[356140476,1741951754210,-696.5,8.839e-05,2]
[356140477,1741951754230,-500.0,8.839e-05,2]
[356140478,1741951754250,-500.0,8.839e-05,2]
[356140479,1741951754270,-760.41,8.839e-05,2]
[356140481,1741951754509,-3165.14,8.839e-05,2]
[356140482,1741951754532,-511.63,8.839e-05,2]
[356140483,1741951754552,-968.35,8.839e-05,2]
[356140484,1741951754572,-660.84,8.839e-05,2]
[356140485,1741951754594,-701.14,8.839e-05,2]
[356140486,1741951754617,-500.0,8.839e-05,2]
[356140487,1741951754638,-500.0,8.839e-05,2]
[356140488,1741951754658,-500.0,8.839e-05,2]
[356140489,1741951754679,-500.0,8.839e-05,2]
[356140490,1741951754702,-500.0,8.839e-05,2]
[356140491,1741951754723,-500.0,8.84e-05,2]
[356140492,1741951754742,-500.0,8.84e-05,2]
[356140493,1741951754762,-155.80853462,8.84e-05,2]
[356140501,1741951812549,600.0,0.000115,3]
[356140577,1741951837725,-938.15,8.838e-05,2]
[356140578,1741951837735,-500.0,8.838e-05,2]
[356140579,1741951837745,-249.05,8.838e-05,2]
[356140601,1741951840919,-50.95,8.838e-05,2]
[356140602,1741951840929,-500.0,8.838e-05,2]
[356140603,1741951840938,-311.78203433,8.838e-05,2]
[356140605,1741951842857,-709.99626722,8.838e-05,2]
[356140606,1741951843017,-76.70289761,8.838e-05,2]
[356140610,1741951843830,-375.9483601,8.838e-05,2]
[356140629,1741951845842,-1787.10044074,8.838e-05,2]
[356140630,1741951845852,-500.0,8.838e-05,2]
[356140631,1741951845862,-500.0,8.838e-05,2]
[356140632,1741951845872,-1833.62,8.838e-05,2]
[356140633,1741951845881,-500.0,8.838e-05,2]
[356140634,1741951845891,-962.12606526,8.838e-05,2]
[356140635,1741951846140,-391.77209986,8.838e-05,2]
[356140636,1741951846160,-1116.07497923,8.838e-05,2]
[356140637,1741951846171,-330.51685565,8.838e-05,2]
[356140638,1741951846182,-500.0,8.839e-05,2]
[356140639,1741951846191,-0.14505936,8.839e-05,2]
[356140640,1741951846222,-42.75430108,8.839e-05,2]
[356140644,1741951958870,569.5644139,7.979e-05,2]
[356140650,1741952112037,236.49785499,0.000115,3]
[356140652,1741952216331,5932.90243303,7.839e-05,2]
[356140653,1741952216365,18967.09756697,7.839e-05,2]
[356140656,1741952384957,471.2600871,7.901e-05,2]
[356140659,1741952411594,600.0,0.00011,3]
[356140660,1741952446963,-9998.0,0.0001525,30]
[356140661,1741952446990,-156.89796087,0.00015701,120]
[356140662,1741952447016,-200.0,0.00016273,120]
[356140663,1741952447049,-200.0,0.00017123,120]
[356140664,1741952447078,-155.0,0.00018,30]
[356140665,1741952447104,-200.0,0.00018178,120]
[356140666,1741952447132,-833.875,0.00019,30]
[356140667,1741952447162,-10447.443168,0.000199,30]
[356140668,1741952447192,-1796.16450782,0.0002,30]
[356140669,1741952447219,-796.15704364,0.0002,30]
[356140670,1741952447245,-50423.28246234,0.0002,120]
[356140671,1741952447271,-500000.0,0.0002,30]
[356140672,1741952447295,-3488.51233361,0.0002,30]
[356140673,1741952447321,-1342.564382,0.0002,30]
[356140674,1741952447346,-8725.70556977,0.0002,30]
[356140675,1741952447371,-160.0,0.0002,30]
[356140676,1741952447395,-833.875,0.0002,30]
[356140677,1741952447425,-200.0,0.00021467,120]
[356140678,1741952447452,-1264788.37,0.00022,30]
[356140679,1741952447480,-200.0,0.00023169,120]
[356140680,1741952447510,-780.02,0.000237,31]
[356140681,1741952447537,-780.02,0.000237,31]
[356140682,1741952447566,-780.02,0.000237,31]
[356140683,1741952447594,-780.02,0.000237,31]
[356140684,1741952447622,-780.02,0.000237,31]
[356140685,1741952447651,-780.02,0.000237,31]
[356140686,1741952447679,-780.02,0.000237,31]
[356140687,1741952447707,-780.02,0.000237,31]
[356140688,1741952447735,-780.02,0.000237,31]
[356140689,1741952447764,-780.02,0.000237,31]
[356140690,1741952447792,-780.02,0.000237,31]
[356140691,1741952447821,-780.02,0.000237,31]
[356140692,1741952447848,-780.02,0.000237,31]
[356140693,1741952447877,-780.02,0.000237,31]
[356140694,1741952447907,-780.02,0.000237,31]
[356140695,1741952447938,-780.02,0.000237,31]
[356140696,1741952447969,-200.0,0.00024335,120]
[356140697,1741952448002,-780.02,0.000244,31]
[356140698,1741952448034,-780.02,0.000244,31]
[356140699,1741952448065,-780.02,0.000244,31]
[356140700,1741952448095,-780.02,0.000244,31]
[356140701,1741952448127,-780.02,0.000244,31]
[356140702,1741952448158,-780.02,0.000244,31]
[356140703,1741952448190,-780.02,0.000244,31]
[356140704,1741952448221,-780.02,0.000244,31]
[356140705,1741952448256,-780.02,0.000244,31]
[356140706,1741952448287,-780.02,0.000244,31]
[356140707,1741952448316,-780.02,0.000244,31]
[356140708,1741952448346,-780.02,0.000244,31]
[356140709,1741952448375,-780.02,0.000244,31]
[356140710,1741952448404,-780.02,0.000244,31]
[356140711,1741952448434,-780.02,0.000244,31]
[356140712,1741952448463,-780.02,0.000244,31]
[356140713,1741952448493,-780.02,0.000244,31]
[356140714,1741952448523,-780.02,0.000244,31]
[356140715,1741952448554,-780.02,0.000244,31]
[356140716,1741952448585,-780.02,0.000244,31]
[356140717,1741952448616,-780.02,0.000244,31]
[356140718,1741952448646,-780.02,0.000244,31]
[356140719,1741952448676,-780.02,0.000244,31]
[356140720,1741952448705,-780.02,0.000244,31]
[356140721,1741952448735,-200.0,0.00024737,120]
[356140722,1741952448763,-5000.0,0.00025,120]
[356140723,1741952448789,-500000.0,0.00025,30]
[356140724,1741952448816,-1000.0,0.00025,30]
[356140725,1741952448844,-2821.2524357,0.00025,120]
[356140726,1741952448873,-416.66666667,0.00025,30]
[356140727,1741952448902,-152.18963839,0.000252,120]
[356140728,1741952448935,-780.02,0.000252,31]
[356140729,1741952448966,-780.02,0.000252,31]
[356140730,1741952449002,-780.02,0.000252,31]
[356140731,1741952449035,-780.02,0.000252,31]
[356140732,1741952449067,-780.02,0.000252,31]
[356140733,1741952449096,-780.02,0.000252,31]
[356140734,1741952449127,-780.02,0.000252,31]
[356140735,1741952449157,-780.02,0.000252,31]
[356140736,1741952449187,-780.02,0.000252,31]
[356140737,1741952449218,-780.02,0.000252,31]
[356140738,1741952449248,-780.02,0.000252,31]
[356140739,1741952449279,-780.02,0.000252,31]
[356140740,1741952449314,-780.02,0.000252,31]
[356140741,1741952449349,-780.02,0.000252,31]
[356140742,1741952449380,-780.02,0.000252,31]
[356140743,1741952449411,-780.02,0.000252,31]
[356140744,1741952449443,-780.02,0.000252,31]
[356140745,1741952449475,-780.02,0.000252,31]
[356140746,1741952449507,-780.02,0.000252,31]
[356140747,1741952449537,-780.02,0.000252,31]
[356140748,1741952449569,-780.02,0.000252,31]
[356140749,1741952449600,-780.02,0.000252,31]
[356140750,1741952449631,-780.02,0.000252,31]
[356140751,1741952449661,-780.02,0.000252,31]
[356140752,1741952449690,-200.0,0.00025654,120]
[356140753,1741952449721,-780.02,0.000259,31]
[356140754,1741952449752,-780.02,0.000259,31]
[356140755,1741952449781,-780.02,0.000259,31]
[356140756,1741952449810,-780.02,0.000259,31]
[356140757,1741952449839,-780.02,0.000259,31]
[356140758,1741952449868,-780.02,0.000259,31]
[356140759,1741952449900,-780.02,0.000259,31]
[356140760,1741952450110,-780.02,0.000259,31]
[356140761,1741952450140,-780.02,0.000259,31]
[356140762,1741952450170,-780.02,0.000259,31]
[356140763,1741952450200,-780.02,0.000259,31]
[356140764,1741952450229,-780.02,0.000259,31]
[356140765,1741952450259,-780.02,0.000259,31]
[356140766,1741952450287,-780.02,0.000259,31]
[356140767,1741952450317,-780.02,0.000259,31]
[356140768,1741952450347,-780.02,0.000259,31]
[356140769,1741952450376,-780.02,0.000259,31]
[356140770,1741952450405,-780.02,0.000259,31]
[356140771,1741952450434,-780.02,0.000259,31]
[356140772,1741952450463,-780.02,0.000259,31]
[356140773,1741952450491,-780.02,0.000259,31]
[356140774,1741952450520,-780.02,0.000259,31]
[356140775,1741952450549,-780.02,0.000259,31]
[356140776,1741952450579,-780.02,0.000259,31]
[356140777,1741952450607,-780.02,0.000266,31]
[356140778,1741952450635,-780.02,0.000266,31]
[356140779,1741952450672,-780.02,0.000266,31]
[356140780,1741952450703,-780.02,0.000266,31]
[356140781,1741952450736,-780.02,0.000266,31]
[356140782,1741952450766,-780.02,0.000266,31]
[356140783,1741952450794,-780.02,0.000266,31]
[356140784,1741952450822,-780.02,0.000266,31]
[356140785,1741952450851,-780.02,0.000266,31]
[356140786,1741952450879,-780.02,0.000266,31]
[356140787,1741952450910,-780.02,0.000266,31]
[356140788,1741952450940,-780.02,0.000266,31]
[356140789,1741952450967,-200.0,0.00026709,120]
[356140790,1741952450996,-200.0,0.00027,120]
[356140791,1741952451021,-200.0,0.00027,120]
[356140792,1741952451046,-221.97547,0.00027,120]
[356140793,1741952451072,-2697.87,0.00027,30]
[356140794,1741952451098,-401.0,0.00027397,120]
[356140795,1741952451123,-164.851124,0.00027397,120]
[356140796,1741952451150,-200.0,0.00027603,120]
[356140797,1741952451176,-1914.9117364,0.00028,30]
[356140798,1741952451202,-158.7929984,0.00028565,30]
[356140799,1741952451228,-570.8456657,0.00028565,30]
[356140800,1741952451255,-200.0,0.00029,120]
[356140801,1741952451282,-233.0,0.0003,120]
[356140802,1741952451308,-889.94,0.0003,120]
[356140803,1741952451333,-2914.81719739,0.0003,120]
[356140804,1741952451357,-13513.995181,0.0003,120]
[356140805,1741952451381,-500000.0,0.0003,30]
[356140806,1741952451404,-668.75685876,0.0003,120]
[356140807,1741952451429,-1000.0,0.0003,60]
[356140808,1741952451453,-5156.2740851,0.0003,60]
[356140809,1741952451478,-250000.0,0.0003,30]
[356140810,1741952451503,-12458.93820146,0.0003,120]
[356140811,1741952451530,-200.0,0.00030161,120]
[356140812,1741952451557,-200.0,0.00030538,120]
[356140813,1741952451582,-262.0,0.0003067,30]
[356140814,1741952451608,-200.0,0.00030877,120]
[356140815,1741952451632,-416.66666667,0.00031,120]
[356140816,1741952451656,-1000.0,0.00032,120]
[356140817,1741952451681,-1100.0,0.00032,120]
[356140818,1741952451705,-200.0,0.000323,120]